bitfinex/quotes_ETHUSD_20240817
["timestamp","ask_amount","ask_price","bid_price","bid_amount"]
[1723853057461,0.12719356,2599.6,2599.4,3.84689]
[1723853057691,0.12719356,2599.6,2599.4,4.616303]
[1723853058553,0.7,2599.7,2599.5,3.0]
[1723853058764,0.12719414,2599.6,2599.5,3.0]
[1723853059073,0.12719414,2599.6,2599.5,6.84689]
[1723853060022,3.0653,2600.0,2599.5,6.84689]
[1723853060193,0.12718358,2599.9,2599.5,3.0]
[1723853060393,0.12718358,2599.8,2599.5,3.0]
[1723853060613,0.12718358,2599.7,2599.5,6.84687]
[1723853060816,0.12718358,2599.6,2599.5,6.84687]
[1723853060994,0.12718358,2599.9,2599.5,7.916246]
[1723853061219,0.12718358,2599.8,2599.5,7.916246]
[1723853061416,3.0653,2600.0,2599.5,7.916246]
[1723853061417,0.12718358,2599.7,2599.5,7.916246]
[1723853061731,0.12718358,2599.6,2599.5,7.916246]
[1723853061885,0.12718358,2599.9,2599.5,7.916246]
[1723853062238,2.3653,2599.7,2599.3,3.84715]
[1723853062390,0.12718358,2599.6,2599.3,3.84715]
[1723853062590,0.12718358,2599.5,2599.3,3.84715]
[1723853062785,0.12718358,2599.4,2599.3,3.84715]
[1723853062987,0.12719837,2599.6,2599.3,6.84715]
[1723853063221,0.12719837,2599.5,2599.3,6.84715]
[1723853063423,3.0653,2599.7,2599.3,6.84715]
[1723853063588,0.12719846,2599.6,2599.3,6.84715]
[1723853063789,0.12719846,2599.5,2599.4,3.84702]
[1723853064135,0.7,2600.0,2599.6,3.84663]
[1723853064320,0.12718551,2599.9,2599.6,7.69328]
[1723853064523,0.12718551,2599.8,2599.6,7.69328]
[1723853064716,0.12718551,2599.7,2599.6,3.84663]
[1723853065289,0.12718551,2599.7,2599.6,4.6844595]
[1723853067430,0.7,2600.0,2599.7,3.84645]
[1723853067635,0.12718065,2599.9,2599.7,3.84645]
[1723853067928,0.12718065,2599.8,2599.7,3.84645]
[1723853069952,0.12718102,2599.9,2599.8,3.84644]
[1723853070236,0.12717923,2599.9,2599.8,3.84644]
[1723853070459,0.12717923,2599.9,2599.8,7.69288]
[1723853070755,0.12717923,2599.9,2599.8,11.377605]
[1723853071652,0.12717923,2599.9,2599.8,7.531165]
[1723853071992,2.3339,2600.0,2599.9,3.8463]
[1723853072118,2.46107601,2600.0,2599.9,6.8463]
[1723853073351,0.12717601,2600.0,2599.9,6.8463]
[1723853073561,0.12717601,2600.0,2599.9,7.6841295]
[1723853076189,3.54877553,2600.2,2599.9,7.6841295]
[1723853076355,0.1271736,2600.1,2599.9,7.6841295]
[1723853076560,0.1271736,2600.0,2599.9,7.6841295]
[1723853076757,3.54877553,2600.2,2599.9,6.8463]
[1723853076957,0.12717481,2600.1,2599.9,6.8463]
[1723853077156,0.12717481,2600.0,2599.9,6.8463]
[1723853077953,0.12717481,2600.0,2599.9,3.0]
[1723853079709,0.12717481,2600.0,2599.2,3.84723]
[1723853079710,0.7,2599.7,2599.2,3.84723]
[1723853079918,1.666,2599.5,2599.2,3.84723]
[1723853080097,0.12717481,2599.4,2599.2,3.84723]
[1723853080442,0.12717481,2599.3,2599.2,3.84723]
[1723853080889,0.12717481,2599.4,2599.2,3.84723]
[1723853081086,0.12717481,2599.3,2599.2,3.84723]
[1723853081520,1.666,2599.5,2599.2,3.84723]
[1723853081521,0.12717481,2599.4,2599.2,3.84723]
[1723853081727,0.12717481,2599.4,2599.3,3.0]
[1723853081907,0.12717481,2599.4,2599.3,7.831903]
[1723853082087,0.12717481,2599.6,2599.3,7.831903]
[1723853082287,0.12717481,2599.5,2599.3,7.831903]
[1723853082489,0.12717481,2599.4,2599.3,10.69436]
[1723853082718,0.12719763,2599.6,2599.5,3.84689]
[1723853082920,0.12719893,2599.6,2599.5,3.84689]
[1723853083423,0.12719893,2599.6,2599.3,10.69423]
[1723853083624,0.12719893,2599.5,2599.3,6.84705]
[1723853083921,0.12719893,2599.4,2599.3,6.84705]
[1723853084296,2.3339,2599.5,2599.3,3.0]
[1723853084522,0.12720444,2599.4,2599.3,3.0]
[1723853087902,0.12720444,2599.4,2599.2,3.0]
[1723853088102,0.12720444,2599.3,2599.2,3.0]
[1723853088432,0.12721004,2599.4,2599.2,3.0]
[1723853088631,2.50531004,2599.3,2598.9,3.84766]
[1723853088795,0.12721004,2599.2,2598.9,3.84766]
[1723853088997,2.3781,2599.3,2598.9,3.84766]
[1723853089302,0.12721685,2599.2,2598.9,3.84766]
[1723853090213,0.12721685,2599.2,2599.1,3.84748]
[1723853090415,0.12721685,2599.2,2599.1,6.84748]
[1723853090935,0.12721685,2599.2,2599.1,3.0]
[1723853090936,2.50531685,2599.2,2599.1,3.0]
[1723853091141,2.50531685,2599.2,2598.9,3.0]
[1723853091449,0.82721685,2599.1,2598.8,3.0]
[1723853091746,0.82721685,2599.1,2598.5,3.84828]
[1723853091747,0.12721685,2599.0,2598.5,3.84828]
[1723853092612,0.12723053,2598.9,2598.7,3.84807]
[1723853092809,0.7,2599.1,2598.7,3.84807]
[1723853092810,0.7,2599.1,2598.8,3.0]
[1723853093012,0.12722581,2599.0,2598.8,3.0]
[1723853093360,0.7,2599.1,2598.8,3.0]
[1723853093505,0.1272286,2599.0,2598.8,3.0]
[1723853093696,0.7,2599.1,2598.8,3.0]
[1723853093897,0.12722611,2599.0,2598.8,3.0]
[1723853094093,0.12722857,2598.9,2598.8,3.0]
[1723853094895,2.50532857,2598.9,2598.8,3.0]
[1723853095247,2.50532857,2598.9,2598.3,3.84856]
[1723853095248,0.7,2598.8,2598.4,3.0]
[1723853096088,0.7,2598.8,2598.5,3.84837]
[1723853096346,0.7,2598.8,2598.6,3.0]
[1723853098427,3.0781,2599.1,2598.8,3.84792]
[1723853098598,3.0781,2599.1,2598.7,7.69597]
[1723853098599,0.1272295,2599.0,2598.7,7.69597]
[1723853098794,3.0781,2599.1,2598.8,3.84789]
[1723853099014,0.12723351,2599.0,2598.8,3.84789]
[1723853099243,3.0781,2599.1,2598.8,3.84789]
[1723853099454,0.12723303,2599.0,2598.8,3.84789]
[1723853099606,3.0781,2599.1,2598.8,3.84789]
[1723853099809,0.1272321,2599.0,2598.8,3.84789]
[1723853100107,3.0781,2599.1,2598.8,3.84789]
[1723853100321,0.12723269,2599.0,2598.8,3.84789]
[1723853100522,3.0781,2599.1,2598.7,7.69597]
[1723853100735,3.0781,2599.1,2598.8,3.84788]
[1723853101103,0.1272332,2599.0,2598.7,3.84798]
[1723853101304,3.0781,2599.1,2598.7,3.84798]
[1723853101305,0.12723784,2598.9,2598.7,3.84798]
[1723853101499,3.0781,2599.1,2598.7,7.69597]
[1723853101753,3.0781,2599.1,2598.7,3.84798]
[1723853101914,0.12723572,2599.0,2598.7,7.69596]
[1723853102119,3.0781,2599.1,2598.8,3.84789]
[1723853102323,0.12723177,2599.0,2598.8,3.84789]
[1723853102523,3.0781,2599.1,2598.8,3.84789]
[1723853102714,0.1272323,2599.0,2598.8,3.84789]
[1723853103017,3.0781,2599.1,2598.8,3.84789]
[1723853103225,0.12723139,2599.0,2598.8,3.84789]
[1723853103456,0.12723139,2598.9,2598.8,3.84789]
[1723853103948,0.12723139,2599.0,2598.6,6.8481]
[1723853104155,2.3781,2598.9,2598.6,6.8481]
[1723853104359,0.12723832,2598.8,2598.6,6.8481]
[1723853104519,2.3781,2598.9,2598.6,6.8481]
[1723853105621,2.3781,2598.9,2598.7,3.84807]
[1723853106208,2.3781,2598.9,2598.6,6.84821]
[1723853106452,2.3781,2598.9,2598.6,3.0]
[1723853106606,0.12723762,2598.8,2598.6,3.0]
[1723853106809,2.3781,2598.9,2598.6,3.0]
[1723853107210,2.3781,2598.9,2598.6,6.84821]
[1723853107211,0.12723767,2598.8,2598.6,6.84821]
[1723853107440,2.3781,2598.9,2598.6,6.84821]
[1723853107652,0.12723765,2598.8,2598.7,3.84807]
[1723853107837,0.12723765,2598.8,2598.7,6.84807]
[1723853108162,0.12723451,2598.8,2598.7,6.84807]
[1723853108511,3.1334,2599.1,2598.7,6.84807]
[1723853108755,0.12723611,2599.0,2598.7,6.84807]
[1723853108919,0.12723611,2598.9,2598.7,6.84807]
[1723853109124,0.12723611,2598.8,2598.7,6.84807]
[1723853110810,0.12723611,2598.8,2598.7,7.78918831]
[1723853111965,1.79423611,2598.8,2598.7,7.78918831]
[1723853112767,1.667,2598.8,2598.7,7.78918831]
[1723853112931,1.7942311,2598.8,2598.7,7.78918831]
[1723853113561,1.79423158,2598.8,2598.7,7.78918831]
[1723853113775,0.12723158,2598.8,2598.7,15.48532831]
[1723853113914,6.83468242,2599.4,2598.7,15.48532831]
[1723853113915,1.667,2599.4,2599.3,7.69436]
[1723853114115,1.79420986,2599.4,2599.3,3.84718]
[1723853114431,1.79420986,2599.4,2599.1,3.84738]
[1723853114773,2.56060986,2599.3,2599.2,3.0]
[1723853114969,0.7,2599.1,2598.7,11.16798]
[1723853115268,0.7,2599.1,2598.7,3.84798]
[1723853115269,1.667,2598.8,2598.7,3.84798]
[1723853115464,1.79420986,2598.8,2598.7,3.84798]
[1723853115663,1.79420986,2598.8,2598.7,6.84798]
[1723853117042,1.667,2598.8,2598.7,6.84798]
[1723853117281,1.79422981,2598.8,2598.7,6.84798]
[1723853117953,2.56062981,2598.8,2598.7,3.0]
[1723853118161,3.26062981,2598.8,2598.7,3.0]
[1723853120270,3.98669279,2598.8,2598.4,3.84843]
[1723853120440,0.12722981,2598.7,2598.4,3.84843]
[1723853120639,0.12722981,2598.6,2598.4,3.84843]
[1723853120946,0.12722981,2598.5,2598.4,3.84843]
[1723853121551,0.12722981,2598.5,2598.4,6.84843]
[1723853122003,0.12722981,2598.5,2598.4,3.0]
[1723853122139,0.12722981,2598.5,2598.1,3.84887]
[1723853122140,2.4334,2598.4,2598.1,3.84887]
[1723853122482,0.12722981,2598.3,2598.1,3.84887]
[1723853122800,2.4334,2598.4,2598.2,3.84881]
[1723853122955,0.12725484,2598.3,2598.2,3.84881]
[1723853123621,0.12725484,2598.3,2598.2,6.84881]
[1723853124423,0.12725484,2598.3,2598.2,3.0]
[1723853125280,0.12725872,2598.3,2598.2,3.0]
[1723853125806,0.12725675,2598.3,2598.2,3.0]
[1723853127916,0.12725431,2598.3,2598.2,3.0]
[1723853130781,0.45331974,2598.3,2598.2,3.0]
[1723853130986,0.45331974,2598.3,2598.1,3.0]
[1723853131185,0.12725431,2598.2,2598.1,3.0]
[1723853131388,0.12725431,2598.3,2598.1,3.0]
[1723853131615,0.12725431,2598.2,2598.1,3.0]
[1723853131818,0.12725431,2598.2,2597.3,3.26606801]
[1723853131819,0.7,2597.9,2597.3,3.26606801]
[1723853132125,2.41875431,2597.8,2597.5,3.84971]
[1723853132292,0.12725431,2597.7,2597.5,3.84971]
[1723853132498,0.12725431,2597.7,2597.5,7.69947]
[1723853132732,0.09636253,2597.6,2597.5,7.69947]
[1723853133519,2.2915,2597.8,2597.6,3.84968]
[1723853133728,2.2915,2597.8,2597.7,3.0]
[1723853133881,2.41878701,2597.8,2597.7,3.0]
[1723853135216,2.2915,2597.8,2597.7,3.0]
[1723853135588,0.7,2597.9,2597.7,6.84955]
[1723853136026,1.21121102,2598.3,2597.7,6.84955]
[1723853136027,0.7,2598.2,2597.9,3.84918]
[1723853136179,0.12727626,2598.1,2597.9,3.84918]
[1723853136384,0.12727626,2598.0,2597.9,3.84926]
[1723853136628,0.12727626,2598.0,2597.9,7.69852]
[1723853136923,0.12727626,2598.0,2597.8,7.69868]
[1723853137230,0.7,2598.2,2597.8,3.84929]
[1723853137429,0.7,2598.2,2597.5,3.0]
[1723853137430,0.12727584,2598.1,2597.9,3.84925]
[1723853137586,0.7,2598.2,2597.9,3.84918]
[1723853137780,0.7,2598.2,2598.0,3.84911]
[1723853137781,0.12727177,2598.1,2598.0,3.84911]
[1723853138090,1.21121102,2598.5,2598.2,3.84881]
[1723853138091,2.9915,2598.5,2598.2,3.84881]
[1723853138328,0.12726262,2598.4,2598.2,3.84881]
[1723853138526,2.9915,2598.5,2598.2,3.84881]
[1723853138827,2.9915,2598.5,2598.3,3.84867]
[1723853139327,0.127255,2598.4,2598.3,3.84867]
[1723853139690,0.09048294,2598.4,2598.3,3.84867]
[1723853140928,2.2915,2598.3,2598.2,3.84881]
[1723853141130,2.2915,2598.3,2598.1,3.84887]
[1723853141287,0.09040475,2598.3,2598.2,3.84881]
[1723853141681,0.09040475,2598.3,2598.1,3.84887]
[1723853141682,0.7,2598.5,2598.1,7.6977]
[1723853141911,0.08722669,2598.3,2598.1,3.84883]
[1723853142113,0.7,2598.5,2598.1,3.84883]
[1723853142426,0.08713458,2598.2,2598.1,3.84883]
[1723853142630,0.08713458,2598.2,2598.1,10.69779]
[1723853143433,0.08713458,2598.2,2598.1,17.883529]
[1723853144701,0.08713458,2598.2,2598.1,18.433529]
[1723853146099,0.08713458,2598.2,2598.1,17.883529]
[1723853146301,0.08713458,2598.2,2598.1,14.034569]
[1723853146521,0.08713458,2598.2,2598.1,11.767569]
[1723853152450,0.08713458,2598.2,2598.1,10.69779]
[1723853155030,0.08713458,2598.2,2598.0,3.84907]
[1723853155031,2.33823458,2598.2,2598.0,3.84907]
[1723853155235,2.33823458,2598.2,2597.9,3.84916]
[1723853155236,0.12727169,2598.1,2597.9,3.84916]
[1723853155544,0.08390578,2598.1,2597.9,3.84916]
[1723853155714,2.2511,2598.0,2597.9,3.84916]
[1723853156258,2.33491366,2598.0,2597.9,3.84916]
[1723853156415,2.33491366,2598.0,2597.9,6.84916]
[1723853158115,2.33491366,2598.0,2597.9,3.0]
[1723853158358,2.2511,2597.8,2597.5,3.84972]
[1723853158566,0.12728786,2597.7,2597.5,3.84972]
[1723853158764,0.12728786,2597.6,2597.5,3.84972]
[1723853159064,0.08344721,2597.6,2597.4,3.84998]
[1723853159247,0.12729375,2597.6,2597.4,3.84998]
[1723853159615,0.08338737,2597.5,2597.4,3.84998]
[1723853159816,2.33448737,2597.5,2597.4,3.84998]
[1723853160031,2.33448737,2597.5,2597.2,3.0]
[1723853160242,2.33448737,2597.5,2597.1,3.85034]
[1723853160478,2.33448737,2597.5,2596.9,7.32]
[1723853160479,0.7,2597.3,2596.9,3.85066]
[1723853160755,0.7,2597.3,2597.0,3.85059]
[1723853160756,2.2511,2597.2,2597.0,3.85059]
[1723853161149,0.08286747,2597.1,2597.0,3.85059]
[1723853161366,0.38626422,2597.1,2596.6,7.70219]
[1723853161515,0.7,2596.9,2596.2,2.3385]
[1723853161715,2.2511,2596.8,2596.3,3.85157]
[1723853161962,2.33357647,2596.8,2596.5,3.85129]
[1723853162258,2.33357647,2596.8,2596.3,3.85157]
[1723853162259,3.03693412,2596.8,2596.3,7.70309]
[1723853162413,3.03693412,2596.8,2596.4,3.85141]
[1723853162616,3.03693412,2596.8,2596.5,3.85128]
[1723853162815,2.33357647,2596.8,2596.5,3.85128]
[1723853163869,2.33357647,2596.8,2595.9,6.19067]
[1723853163870,0.7,2596.6,2596.1,3.85188]
[1723853164223,0.08214114,2596.5,2596.1,3.85188]
[1723853164424,2.2511,2596.4,2596.1,3.85188]
[1723853164624,2.33337111,2596.4,2596.1,3.85188]
[1723853165133,2.33337111,2596.4,2596.2,3.85175]
[1723853165134,0.08227111,2596.4,2596.2,3.85175]
[1723853165518,0.7,2596.6,2596.2,3.85175]
[1723853165718,1.06544577,2596.6,2596.3,3.0]
[1723853166275,0.08234728,2596.5,2596.3,3.0]
[1723853167753,0.08234728,2596.5,2596.3,6.85163]
[1723853168532,2.4589,2596.4,2596.3,3.0]
[1723853168740,2.4589,2596.4,2596.2,3.0]
[1723853169001,2.4589,2596.4,2596.2,6.85173]
[1723853169002,2.54099392,2596.4,2596.2,6.85173]
[1723853169144,0.08209392,2596.4,2596.3,3.85163]
[1723853169344,0.08209392,2596.4,2596.3,6.85163]
[1723853169589,3.1589,2596.6,2596.3,3.0]
[1723853169789,0.08172782,2596.4,2596.2,6.85167]
[1723853169994,3.47479,2596.6,2596.2,6.85167]
[1723853170144,0.08163556,2596.3,2596.2,6.85167]
[1723853170345,3.47479,2596.6,2596.2,6.85167]
[1723853170661,0.08163556,2596.3,2596.2,6.85167]
[1723853171287,0.08163556,2596.3,2596.2,11.773798]
[1723853171794,0.08163556,2596.3,2596.2,15.625578]
[1723853174706,0.08163556,2596.3,2596.2,10.70345]
[1723853181269,0.08163556,2596.3,2596.2,14.55523]
[1723853182181,0.08163556,2596.3,2596.2,18.40701]
[1723853182384,0.003253,2596.3,2596.2,18.40701]
[1723853182558,2.4589,2597.1,2597.0,3.85059]
[1723853183072,2.53573193,2597.1,2597.0,3.85059]
[1723853183471,0.07683193,2597.1,2597.0,7.70118]
[1723853183687,0.7,2597.5,2597.4,7.7]
[1723853183889,2.4589,2597.7,2597.6,7.6994]
[1723853184075,2.4589,2597.7,2597.6,10.6994]
[1723853184475,2.4589,2597.7,2597.6,6.8497]
[1723853184939,3.1589,2597.7,2597.6,3.0]
[1723853185078,2.4589,2597.3,2597.1,7.32]
[1723853185281,2.4589,2597.3,2597.2,3.0]
[1723853187773,2.65226264,2597.3,2597.2,3.0]
[1723853188113,2.52495142,2597.3,2597.2,3.0]
[1723853188700,2.52495142,2597.3,2597.2,6.8503]
[1723853190982,0.06605142,2597.3,2597.2,6.8503]
[1723853191392,0.06605142,2597.3,2597.2,10.7006]
[1723853191575,0.06605142,2597.3,2597.2,12.155716]
[1723853191781,0.7,2597.7,2597.6,3.8497]
[1723853191990,0.82729153,2597.7,2597.6,7.6994]
[1723853192191,0.06162845,2597.7,2597.6,10.6994]
[1723853192389,0.06162845,2597.7,2597.6,11.25505131]
[1723853192616,7.46,2598.0,2597.9,3.84926]
[1723853192786,7.58727755,2598.0,2597.9,3.84926]
[1723853193189,0.12727755,2598.0,2597.8,3.84938]
[1723853193419,3.0521,2598.1,2597.8,3.84933]
[1723853193620,0.12727804,2598.0,2597.8,7.69866]
[1723853193823,3.0521,2598.1,2597.9,3.84926]
[1723853194113,0.1272734,2598.0,2597.9,7.69852]
[1723853194324,0.7,2598.1,2598.0,3.84911]
[1723853194618,0.7,2598.1,2598.0,6.84911]
[1723853195062,0.82727375,2598.1,2598.0,6.84911]
[1723853195351,0.75033685,2598.1,2598.0,6.84911]
[1723853196153,0.87761242,2598.1,2598.0,6.84911]
[1723853196452,0.75033685,2598.1,2598.0,6.84911]
[1723853204266,0.05033685,2598.1,2598.0,11.768056]
[1723853205265,0.05033685,2598.1,2598.0,10.69822]
[1723853208496,2.35783458,2598.2,2598.1,3.84896]
[1723853208913,2.40813824,2598.2,2598.1,3.84896]
[1723853209115,0.7,2598.1,2598.0,3.0]
[1723853209282,0.7,2598.1,2597.9,7.69835]
[1723853209475,0.75021153,2598.1,2598.0,3.0]
[1723853209703,0.7,2598.1,2598.0,6.84911]
[1723853211188,0.7502159,2598.1,2598.0,6.84911]
[1723853211517,0.82726748,2598.1,2598.0,6.84911]
[1723853211720,0.87772722,2598.1,2598.0,6.84911]
[1723853211921,0.87772722,2598.1,2598.0,3.0]
[1723853212283,0.75045974,2598.1,2598.0,6.84911]
[1723853212628,0.87772481,2598.1,2598.0,6.84911]
[1723853213316,0.17772481,2598.1,2598.0,10.69822]
[1723853213622,0.05045974,2598.1,2598.0,10.69822]
[1723853214221,2.35783458,2598.2,2598.1,3.84896]
[1723853214383,2.48509525,2598.2,2598.1,3.84896]
[1723853214585,2.40815891,2598.2,2598.1,3.84896]
[1723853214779,2.53541953,2598.2,2598.1,3.84896]
[1723853214980,2.4850952,2598.2,2598.1,3.84896]
[1723853215224,2.53543342,2598.2,2598.1,3.84896]
[1723853216219,2.53543342,2598.2,2598.0,6.84903]
[1723853216518,0.12726062,2598.1,2598.0,6.84903]
[1723853217881,0.17750672,2598.1,2598.0,3.0]
[1723853218084,0.87750672,2598.1,2598.0,3.0]
[1723853218282,0.87751981,2598.1,2598.0,3.0]
[1723853218498,0.87751981,2598.1,2598.0,6.84911]
[1723853219615,0.0502461,2598.1,2598.0,17.966058]
[1723853220040,0.08713458,2598.2,2598.1,7.69792]
[1723853220233,0.08713458,2598.2,2598.1,14.54688]
[1723853220386,0.08713458,2598.2,2598.1,15.48781931]
[1723853220733,0.08713458,2598.2,2598.1,19.33677931]
[1723853221023,0.08713458,2598.2,2598.1,21.68567931]
[1723853222747,0.08713458,2598.2,2598.1,17.83671931]
[1723853223042,0.08713458,2598.2,2598.1,18.02415977]
[1723853224236,0.08713458,2598.2,2598.1,17.83671931]
[1723853225302,0.08713458,2598.2,2598.1,15.48781931]
[1723853229736,0.08713458,2598.2,2598.1,17.79691931]
[1723853231809,0.08713458,2598.2,2598.1,22.19587931]
[1723853232008,0.08713458,2598.2,2598.1,18.34691931]
[1723853232546,0.08713458,2598.2,2598.1,17.79691931]
[1723853232758,0.08713458,2598.2,2598.1,15.48781931]
[1723853241792,2.37043458,2598.2,2598.1,10.69792]
[1723853241962,4.03743458,2598.2,2598.1,7.69792]
[1723853243063,2.37043458,2598.2,2598.1,7.69792]
[1723853243753,2.37043458,2598.2,2598.1,10.69792]
[1723853246279,2.37043458,2598.2,2598.1,10.88960647]
[1723853247625,2.37043458,2598.2,2598.1,10.69792]
[1723853256894,0.08713458,2598.2,2598.1,16.02095491]
[1723853257090,0.08713458,2598.2,2598.1,10.69792]
[1723853257296,0.21438321,2598.2,2598.1,10.69792]
[1723853257507,0.21438321,2598.2,2598.1,14.54688]
[1723853257508,0.08713458,2598.2,2598.1,14.54688]
[1723853257793,0.08713458,2598.2,2598.1,10.69792]
[1723853259853,0.08713458,2598.2,2598.1,12.03701038]
[1723853260093,0.08713458,2598.2,2598.1,11.88711038]
[1723853260579,0.08713458,2598.2,2598.1,10.54802]
[1723853260756,0.08713458,2598.2,2598.1,11.88710789]
[1723853260958,0.08713458,2598.2,2598.1,10.54802]
[1723853261160,0.08713458,2598.2,2598.1,11.88711561]
[1723853261656,0.08713458,2598.2,2598.1,11.88710257]
[1723853262752,0.08713458,2598.2,2598.1,13.89571003]
[1723853262967,0.08713458,2598.2,2598.1,11.88710257]
[1723853263105,0.08713458,2598.2,2598.1,13.89574469]
[1723853263775,0.08713458,2598.2,2598.1,11.88710257]
[1723853264040,0.08713458,2598.2,2598.1,13.89575311]
[1723853264245,0.08713458,2598.2,2598.1,13.89575374]
[1723853265433,0.08713458,2598.2,2598.1,13.89572688]
[1723853266433,0.08713458,2598.2,2598.1,13.895746]
[1723853268158,4.31857849,2598.2,2598.1,10.54802]
[1723853268328,4.36686587,2598.2,2598.1,10.54802]
[1723853268878,4.36686587,2598.2,2598.1,11.88719887]
[1723853269042,4.36686587,2598.2,2598.1,10.54802]
[1723853269636,4.36686587,2598.2,2598.1,11.88721661]
[1723853270248,2.65157849,2598.2,2598.1,11.88721661]
[1723853270431,2.69972359,2598.2,2598.1,10.54802]
[1723853270632,2.69972359,2598.2,2598.1,11.88720252]
[1723853271167,2.69972359,2598.2,2598.1,10.54802]
[1723853271472,2.69972359,2598.2,2598.1,11.88718253]
[1723853271768,2.69972359,2598.2,2598.1,11.88720243]
[1723853272842,2.69972359,2598.2,2598.1,11.88721044]
[1723853273038,4.36672359,2598.2,2598.1,10.54802]
[1723853273675,4.80339595,2598.2,2598.1,3.0]
[1723853273830,2.31805085,2598.2,2598.0,3.0]
[1723853274051,4.6543701,2598.1,2598.0,3.0]
[1723853274465,2.4372,2598.0,2597.8,3.0]
[1723853274769,4.27936538,2597.9,2597.8,3.0]
[1723853274969,4.27936538,2597.9,2597.8,6.84941]
[1723853275267,4.27939709,2597.9,2597.8,6.84941]
[1723853275776,4.27939887,2597.9,2597.8,6.84941]
[1723853276559,4.27939887,2597.9,2597.8,3.0]
[1723853276757,4.74297196,2597.9,2597.8,3.0]
[1723853278174,4.74297196,2597.9,2597.8,6.84941]
[1723853278894,4.74297196,2597.9,2597.8,3.0]
[1723853279402,4.61569456,2597.9,2597.8,3.0]
[1723853279560,4.74297355,2597.9,2597.8,3.0]
[1723853280295,4.74297355,2597.9,2597.5,3.84978]
[1723853280296,2.4372,2597.8,2597.5,3.84978]
[1723853280506,2.4372,2597.5,2597.4,3.85]
[1723853280858,2.48467397,2597.5,2597.4,6.85]
[1723853282476,2.89984137,2597.5,2597.4,3.0]
[1723853283406,2.48467397,2597.5,2597.4,6.85]
[1723853283562,0.04747397,2597.5,2597.4,6.85]
[1723853283763,1.667,2597.6,2597.4,6.85]
[1723853284109,1.667,2597.6,2597.5,3.0]
[1723853287467,2.4372,2597.8,2597.5,6.84985]
[1723853287772,2.3542,2597.6,2597.5,3.0]
[1723853287986,2.58962,2597.6,2597.5,3.0]
[1723853288199,2.3542,2597.6,2597.5,6.84985]
[1723853288907,2.367,2597.7,2597.6,3.8497]
[1723853288908,1.667,2597.7,2597.6,3.8497]
[1723853289108,1.667,2597.7,2597.6,6.8497]
[1723853289479,1.667,2597.7,2597.6,10.6994]
[1723853295709,3.0542,2598.0,2597.8,3.84928]
[1723853295710,1.667,2597.9,2597.8,3.84928]
[1723853295921,1.7942765,2597.9,2597.8,3.84928]
[1723853296079,1.7942765,2597.9,2597.7,3.84955]
[1723853296284,1.667,2597.9,2597.7,7.69902]
[1723853296486,1.667,2597.9,2597.8,3.84941]
[1723853296825,1.667,2597.9,2597.7,3.84947]
[1723853296826,1.79427749,2597.9,2597.7,3.84947]
[1723853296993,0.12727749,2597.8,2597.7,3.84947]
[1723853297199,1.667,2597.9,2597.7,3.84947]
[1723853297394,0.1272792,2597.8,2597.7,3.84947]
[1723853297716,1.667,2597.9,2597.7,3.84947]
[1723853297912,0.12728026,2597.8,2597.7,3.84947]
[1723853298114,2.44133458,2598.2,2598.0,3.84906]
[1723853298294,2.44133458,2598.2,2598.1,3.84896]
[1723853298295,4.10833458,2598.2,2598.1,3.84896]
[1723853298638,1.88139299,2598.2,2598.1,3.84896]
[1723853298942,1.88139299,2598.2,2598.1,8.467722]
[1723853298943,0.08713458,2598.2,2598.1,8.467722]
[1723853299103,0.08713458,2598.2,2598.1,15.316682]
[1723853300088,0.08713458,2598.2,2598.1,17.20562382]
[1723853300285,0.08713458,2598.2,2598.1,17.20562098]
[1723853300530,0.08713458,2598.2,2598.1,15.866682]
[1723853300902,0.08713458,2598.2,2598.1,15.316682]
[1723853312518,0.08713458,2598.2,2598.1,11.467722]
[1723853313469,0.08713458,2598.2,2598.1,10.69792]
[1723853315333,3.19933458,2598.2,2597.9,3.84915]
[1723853315520,2.4122,2598.0,2597.9,3.84915]
[1723853316460,2.4587556,2598.0,2597.9,3.84915]
[1723853316617,2.4587556,2598.0,2597.9,6.84915]
[1723853317020,2.4122,2598.0,2597.9,6.84915]
[1723853320370,3.19933458,2598.2,2598.0,3.84911]
[1723853320679,2.49933458,2598.2,2598.1,10.69792]
[1723853321267,2.49933458,2598.2,2598.1,3.0]
[1723853321268,4.99359024,2598.2,2598.1,3.0]
[1723853321567,5.43073322,2598.2,2598.1,3.0]
[1723853322062,2.4122,2598.1,2598.0,3.0]
[1723853322364,4.20645566,2598.1,2598.0,3.0]
[1723853322667,4.20645566,2598.1,2597.5,3.84976]
[1723853322668,3.1122,2597.7,2597.5,3.84976]
[1723853322873,1.667,2597.6,2597.5,3.84976]
[1723853323935,1.667,2597.6,2597.5,6.84976]
[1723853326593,2.4122,2597.7,2597.6,3.8497]
[1723853326733,2.4122,2597.7,2597.6,10.6994]
[1723853327567,1.667,2597.8,2597.7,3.84955]
[1723853327773,1.667,2597.8,2597.7,6.84955]
[1723853329772,1.667,2597.8,2597.7,10.6991]
[1723853330486,1.667,2597.8,2597.7,6.84955]
[1723853330937,1.71332837,2597.8,2597.7,6.84955]
[1723853332877,0.7,2597.6,2597.3,3.85005]
[1723853333074,4.006,2597.4,2597.3,3.85005]
[1723853333245,4.006,2597.4,2597.2,3.85025]
[1723853333446,1.667,2597.3,2597.1,3.85034]
[1723853333646,1.71251577,2597.3,2597.1,3.85034]
[1723853334462,1.71251577,2597.3,2597.2,3.0]
[1723853334796,4.05151577,2597.3,2597.2,3.0]
[1723853335183,4.05151577,2597.3,2597.2,6.8503]
[1723853338610,4.05151577,2597.3,2597.2,3.0]
[1723853340257,4.05151577,2597.3,2597.2,6.8503]
[1723853340503,2.38451577,2597.3,2597.2,6.8503]
[1723853340796,4.006,2597.3,2597.2,6.8503]
[1723853341007,4.05153204,2597.3,2597.2,6.8503]